bitfinex-derivatives/quotes_BTCF0:USTF0_20250922
["timestamp","ask_amount","ask_price","bid_price","bid_amount"]
[1758573825066,0.12786843,112550.0,112540.0,1.95826115]
[1758573825359,0.05679607,112550.0,112540.0,1.95826115]
[1758573825767,0.05639607,112550.0,112540.0,1.95826115]
[1758573826065,0.03494,112550.0,112540.0,1.95826115]
[1758573826266,0.05681989,112550.0,112540.0,1.95826115]
[1758573826464,0.0004,112550.0,112540.0,2.21675115]
[1758573826759,0.03494,112570.0,112560.0,0.0887797]
[1758573826963,0.05641811,112570.0,112560.0,1.67806025]
[1758573827757,0.05641811,112570.0,112560.0,1.2882297]
[1758573828070,0.05781811,112570.0,112560.0,1.67806025]
[1758573828566,0.05781811,112570.0,112560.0,1.68500025]
[1758573828567,0.02287811,112570.0,112560.0,1.68500025]
[1758573829066,0.02887811,112570.0,112560.0,1.68500025]
[1758573831568,0.04175811,112570.0,112560.0,0.86218025]
[1758573831867,0.06381811,112570.0,112560.0,1.67806025]
[1758573832568,0.02887811,112570.0,112560.0,2.99650706]
[1758573832768,0.0074,112570.0,112560.0,2.21684596]
[1758573833068,0.007,112570.0,112560.0,2.99650706]
[1758573833371,0.0074,112570.0,112560.0,2.99650706]
[1758573833559,0.0074,112570.0,112560.0,2.18062706]
[1758573833866,0.0074,112570.0,112560.0,2.99646706]
[1758573834064,0.02888943,112570.0,112560.0,2.99646706]
[1758573834473,0.0008,112580.0,112570.0,0.1099025]
[1758573834672,0.01288,112590.0,112580.0,0.0887646]
[1758573834866,0.01288,112590.0,112580.0,1.67636515]
[1758573835162,0.03436943,112590.0,112580.0,1.67636515]
[1758573836071,0.02148943,112590.0,112580.0,1.68485515]
[1758573836269,0.03448943,112590.0,112580.0,1.68485515]
[1758573836569,0.03488943,112590.0,112580.0,1.70393001]
[1758573836869,0.03888943,112590.0,112580.0,1.70393001]
[1758573837664,0.03588943,112590.0,112580.0,1.70393001]
[1758573837867,0.0144,112590.0,112580.0,1.46809001]
[1758573838171,0.001,112590.0,112580.0,2.28385001]
[1758573838471,0.0014,112590.0,112580.0,1.46809001]
[1758573838671,0.0014,112590.0,112580.0,2.33229078]
[1758573839465,0.0004,112590.0,112580.0,2.33329078]
[1758573839671,0.0004,112590.0,112580.0,4.27815248]
[1758573839672,1e-07,112590.0,112580.0,4.27815248]
[1758573839969,1e-07,112590.0,112580.0,4.27811248]
[1758573840570,1e-07,112590.0,112580.0,3.8207663]
[1758573840770,0.01375,112630.0,112620.0,0.1098626]
[1758573840771,0.03476,112630.0,112620.0,0.1098626]
[1758573840971,0.0561273,112630.0,112620.0,0.9255826]
[1758573842173,0.0761273,112630.0,112620.0,0.1108626]
[1758573842374,0.0761273,112630.0,112620.0,0.9265426]
[1758573842564,0.0761273,112630.0,112620.0,0.92900878]
[1758573843075,0.0745273,112630.0,112620.0,1.2863026]
[1758573843275,0.0745273,112630.0,112620.0,0.4706626]
[1758573843468,0.0745273,112630.0,112620.0,1.2863026]
[1758573844071,0.0744473,112630.0,112620.0,1.2863026]
[1758573844467,0.0744473,112630.0,112620.0,1.75221878]
[1758573844468,0.0398673,112630.0,112620.0,1.75221878]
[1758573844675,0.004,112630.0,112620.0,1.75221878]
[1758573844869,0.0134,112630.0,112620.0,0.93657878]
[1758573845072,0.0134,112630.0,112620.0,1.75217878]
[1758573845265,0.0034,112630.0,112620.0,1.75217878]
[1758573845477,0.0104,112630.0,112620.0,1.75217878]
[1758573845679,0.0084,112630.0,112620.0,1.75217878]
[1758573845876,0.0044,112630.0,112620.0,1.75217878]
[1758573846379,0.0044,112630.0,112620.0,1.18657878]
[1758573846570,0.0044,112630.0,112620.0,2.29209878]
[1758573846770,0.004,112630.0,112620.0,2.29209878]
[1758573846974,0.0044,112630.0,112620.0,2.29209878]
[1758573848181,0.0034,112630.0,112620.0,2.29309878]
[1758573848479,0.0004,112630.0,112620.0,2.29309878]
[1758573849285,0.4671513,112660.0,112650.0,0.1098387]
[1758573849472,0.50052781,112660.0,112650.0,0.9253187]
[1758573850582,0.48851338,112660.0,112650.0,0.9253187]
[1758573850880,0.12771338,112660.0,112650.0,0.9252387]
[1758573851076,0.4647469,112670.0,112660.0,0.0887008]
[1758573851077,0.39706,112670.0,112660.0,0.0887008]
[1758573851382,0.39706,112670.0,112660.0,1.38257698]
[1758573851575,0.39706,112670.0,112660.0,0.1098308]
[1758573851777,0.40773302,112670.0,112660.0,0.1098308]
[1758573852078,0.39586,112670.0,112660.0,0.1098308]
[1758573852276,0.41586,112670.0,112660.0,0.9262308]
[1758573852582,0.05506,112670.0,112660.0,0.9262308]
[1758573853480,0.0204,112670.0,112660.0,1.39210698]
[1758573853682,0.02,112670.0,112660.0,1.39210698]
[1758573853881,0.02,112670.0,112660.0,1.2955608]
[1758573854286,0.0204,112670.0,112660.0,0.93754698]
[1758573854477,0.0204,112670.0,112660.0,1.75286698]
[1758573854676,0.0204,112670.0,112660.0,1.2955208]
[1758573854974,0.0154,112670.0,112660.0,0.93654698]
[1758573855175,0.015,112670.0,112660.0,1.75182698]
[1758573855372,0.0014,112670.0,112660.0,1.75182698]
[1758573855577,0.0044,112670.0,112660.0,1.75182698]
[1758573856579,0.0044,112670.0,112660.0,2.00182698]
[1758573856790,0.004,112670.0,112660.0,2.00182698]
[1758573856984,0.04059,112670.0,112660.0,1.2858308]
[1758573857284,0.04059,112670.0,112660.0,1.74317698]
[1758573857686,0.04059,112670.0,112660.0,0.4706308]
[1758573857890,0.04059,112670.0,112660.0,1.2858308]
[1758573858989,0.04055,112670.0,112660.0,1.2858308]
[1758573859287,0.83658908,112670.0,112660.0,0.02113]
[1758573859590,1.21866819,112670.0,112660.0,0.83629]
[1758573859891,1.21866819,112670.0,112660.0,0.02113]
[1758573860084,0.1248907,112660.0,112650.0,0.1106639]
[1758573860279,0.50697867,112660.0,112650.0,0.9038239]
[1758573860477,0.50697867,112660.0,112650.0,0.9256839]
[1758573861082,0.41827797,112660.0,112650.0,0.9256886]
[1758573861490,0.41827797,112660.0,112650.0,1.38303478]
[1758573861991,0.41867797,112660.0,112650.0,1.38303478]
[1758573862578,0.02168797,112660.0,112650.0,1.75146478]
[1758573863079,0.37462,112670.0,112650.0,1.75146478]
[1758573863080,0.0008,112670.0,112650.0,2.00146478]
[1758573863278,0.41830553,112680.0,112670.0,0.1105529]
[1758573863485,0.41830537,112680.0,112670.0,0.9256329]
[1758573864382,0.05750537,112680.0,112670.0,0.9256329]
[1758573864590,0.41830537,112680.0,112670.0,0.9256329]
[1758573864789,0.05750537,112680.0,112670.0,0.9256329]
[1758573864985,0.42130537,112680.0,112670.0,0.1105529]
[1758573865289,0.67130537,112680.0,112670.0,0.9256336]
[1758573865489,0.06750537,112680.0,112670.0,0.9256336]
[1758573865889,0.03131537,112680.0,112670.0,0.9256336]
[1758573866080,0.03131537,112680.0,112670.0,1.38297978]
[1758573866391,0.03171537,112680.0,112670.0,0.9256336]
[1758573866591,0.05439537,112680.0,112670.0,0.9256336]
[1758573866890,0.06758537,112680.0,112670.0,0.9256336]
[1758573867898,0.03171537,112680.0,112670.0,0.9256336]
[1758573868089,0.05439537,112680.0,112670.0,0.9256336]
[1758573868489,0.03171537,112680.0,112670.0,1.38297978]
[1758573869191,0.03171537,112680.0,112670.0,1.74377978]
[1758573869797,0.03131537,112680.0,112670.0,1.74377978]
[1758573869999,0.03171537,112680.0,112670.0,1.2863536]
[1758573870201,0.03171537,112680.0,112670.0,1.74369978]
[1758573870999,0.02471537,112680.0,112670.0,1.74369978]
[1758573871198,0.02471537,112680.0,112670.0,1.99369978]
[1758573871497,0.02177122,112680.0,112670.0,1.99369978]
[1758573871695,0.0004,112680.0,112670.0,2.33369978]
[1758573872100,0.41437636,112700.0,112690.0,0.1118979]
[1758573872294,0.43575014,112700.0,112690.0,0.1118979]
[1758573872699,0.43655014,112700.0,112690.0,0.9268579]
[1758573873015,0.77522014,112700.0,112690.0,0.1118979]
[1758573873298,0.77822014,112700.0,112690.0,0.9268579]
[1758573873493,0.68955014,112700.0,112690.0,0.9268579]
[1758573873702,0.41687014,112700.0,112690.0,0.9344879]
[1758573874085,0.42307014,112700.0,112690.0,0.9344879]
[1758573874299,0.42347014,112700.0,112690.0,0.9344879]
[1758573874600,0.41045014,112700.0,112690.0,0.9344879]
[1758573874791,0.41045014,112700.0,112690.0,1.39183408]
[1758573875597,0.41045014,112700.0,112690.0,0.9344879]
[1758573875999,0.04965014,112700.0,112690.0,1.75263408]
[1758573876194,0.04925014,112700.0,112690.0,1.75263408]
[1758573876400,0.03177378,112700.0,112690.0,2.00263408]
[1758573878090,0.06764378,112700.0,112690.0,1.2875379]
[1758573878290,0.06764378,112700.0,112690.0,0.1118979]
[1758573879002,0.06764378,112700.0,112690.0,0.9267379]
[1758573879196,0.51711378,112700.0,112690.0,0.9267379]
[1758573879504,0.76711378,112700.0,112690.0,0.9267379]
[1758573879691,0.76711378,112700.0,112690.0,0.1118979]
[1758573879898,0.67844378,112700.0,112690.0,0.9266979]
[1758573880298,0.76711378,112700.0,112690.0,0.1118979]
[1758573880603,0.76711378,112700.0,112690.0,0.9266979]
[1758573880902,1.22445996,112700.0,112690.0,0.83802]
[1758573881404,1.22445996,112700.0,112690.0,0.9266979]
[1758573882101,0.76711378,112700.0,112690.0,0.9266979]
[1758573883702,0.76711378,112700.0,112690.0,0.9266579]
[1758573884197,0.04496378,112700.0,112690.0,1.38400408]
[1758573884403,0.03177378,112700.0,112690.0,1.38400408]
[1758573884706,0.03137378,112700.0,112690.0,1.63400408]
[1758573884908,0.03177378,112700.0,112690.0,1.63400408]
[1758573885599,0.03137378,112700.0,112690.0,1.63400408]
[1758573885800,0.03177378,112700.0,112690.0,1.99480408]
[1758573887712,0.03137378,112700.0,112690.0,1.99480408]
[1758573887913,0.03137378,112700.0,112690.0,2.34480408]
[1758573888413,0.0104,112700.0,112690.0,2.34480408]
[1758573888608,0.0104,112700.0,112690.0,2.34476408]
[1758573889412,0.01036,112700.0,112690.0,2.14476408]
[1758573889605,0.06761362,112700.0,112690.0,0.4726979]
[1758573889802,0.03174362,112700.0,112690.0,1.2873779]
[1758573890107,0.03134362,112700.0,112690.0,1.99472408]
[1758573890308,0.03174362,112700.0,112690.0,1.99472408]
[1758573892208,0.06761362,112700.0,112690.0,1.38388408]
[1758573892408,0.06761362,112700.0,112690.0,1.2873379]
[1758573893008,0.40628372,112700.0,112690.0,0.9265379]
[1758573893707,0.31761362,112700.0,112690.0,0.9265379]
[1758573894114,0.40628372,112700.0,112690.0,0.1118979]
[1758573894315,0.31761362,112700.0,112690.0,0.9265379]
[1758573894516,0.03174362,112700.0,112690.0,1.74468408]
[1758573894708,0.03134362,112700.0,112690.0,1.74468408]
[1758573894908,0.03174362,112700.0,112690.0,1.74468408]
[1758573895111,0.03174362,112700.0,112690.0,0.93004408]
[1758573895313,0.06624362,112700.0,112690.0,0.9264979]
[1758573898122,0.06624362,112700.0,112690.0,0.1118979]
[1758573898323,0.67704362,112700.0,112690.0,0.9264979]
[1758573900321,0.76571362,112700.0,112690.0,0.9264979]
[1758573900820,0.76571362,112700.0,112690.0,0.1118979]
[1758573901026,0.76571362,112700.0,112690.0,0.9264579]
[1758573901319,0.01263,112690.0,112680.0,0.130467]
[1758573901519,0.3953,112690.0,112680.0,0.944927]
[1758573901724,0.41668362,112690.0,112680.0,0.944927]
[1758573902025,0.50536152,112690.0,112680.0,0.944927]
[1758573902214,0.75536152,112690.0,112680.0,0.9244808]
[1758573902527,0.66668362,112690.0,112680.0,0.9244808]
[1758573902726,0.67068362,112690.0,112680.0,0.9244808]
[1758573906023,0.30988362,112690.0,112680.0,0.9244808]
[1758573906225,0.67068362,112690.0,112680.0,0.9244808]
[1758573907231,0.75936152,112690.0,112680.0,0.9244808]
[1758573909732,0.67068362,112690.0,112680.0,0.9244808]
[1758573910124,0.75936152,112690.0,112680.0,0.9244808]
[1758573911434,0.75936152,112690.0,112680.0,0.9244858]
[1758573912929,0.75889062,112690.0,112680.0,0.9244858]
[1758573913131,0.67021272,112690.0,112680.0,0.9244858]
[1758573913331,0.75889062,112690.0,112680.0,0.9244858]
[1758573914230,0.758917,112690.0,112680.0,0.9244858]
[1758573914828,0.758917,112690.0,112680.0,0.83576]
[1758573915221,0.1231858,112680.0,112670.0,0.02134]
[1758573915426,0.4839858,112680.0,112670.0,0.9244536]
[1758573915627,0.50539637,112680.0,112670.0,0.9244536]
[1758573916437,0.57557092,112680.0,112670.0,0.9244536]
[1758573918338,0.57557092,112680.0,112670.0,0.83576]
[1758573918535,0.57557092,112680.0,112670.0,0.02124]
[1758573918736,0.57557092,112680.0,112670.0,0.83576]
[1758573919035,0.58257092,112680.0,112670.0,0.02124]
[1758573919245,0.1243238,112670.0,112660.0,0.13117416]
[1758573919433,0.4851238,112670.0,112660.0,1.03559416]
[1758573919635,0.5065386,112670.0,112660.0,0.1116]
[1758573919834,0.5065386,112670.0,112660.0,0.83612]
[1758573920334,0.5065386,112670.0,112660.0,0.0216]
[1758573920731,0.1243317,112660.0,112650.0,0.1104074]
[1758573921036,0.4851317,112660.0,112650.0,1.0848274]
[1758573921733,0.4851317,112660.0,112650.0,0.83612]
[1758573921930,0.5065498,112660.0,112650.0,0.9248296]
[1758573922130,0.4178481,112660.0,112650.0,0.9248296]
[1758573922540,0.5065498,112660.0,112650.0,0.9248296]
[1758573922937,0.4851317,112660.0,112650.0,0.9248296]
[1758573923237,0.4851317,112660.0,112650.0,0.83612]
[1758573923640,0.4851317,112660.0,112650.0,0.9248296]
[1758573923944,0.49651514,112660.0,112650.0,0.9248296]
[1758573924238,0.88649637,112660.0,112650.0,0.83616]
[1758573924432,0.90790728,112660.0,112650.0,0.83616]
[1758573924740,0.90790728,112660.0,112650.0,0.9248696]
[1758573924938,0.51792605,112660.0,112650.0,0.9248696]
[1758573925538,0.90790728,112660.0,112650.0,0.9248696]
[1758573926037,0.91490728,112660.0,112650.0,0.9248696]
[1758573926340,0.42484091,112660.0,112650.0,0.9248696]
[1758573926639,0.42784091,112660.0,112650.0,0.9248696]
[1758573927138,0.06704091,112660.0,112650.0,0.9248696]
[1758573927338,0.51654261,112660.0,112650.0,0.9248696]
[1758573927640,0.52799622,112660.0,112650.0,0.9248696]
[1758573928041,0.16719622,112660.0,112650.0,0.9248696]
[1758573928444,0.07849452,112660.0,112650.0,0.9248696]
[1758573929443,0.52799622,112660.0,112650.0,0.9248696]
[1758573932438,0.43929452,112660.0,112650.0,0.9248696]
[1758573932739,0.52799622,112660.0,112650.0,0.9248696]
[1758573935446,0.1238996,112650.0,112640.0,0.13081039]
[1758573935643,0.14531051,112650.0,112640.0,1.07571039]
[1758573936550,0.14631051,112650.0,112640.0,1.07571039]
[1758573937151,0.53929174,112650.0,112640.0,0.04199599]
[1758573937339,0.90009174,112650.0,112640.0,0.04199599]
[1758573937544,0.90009174,112650.0,112640.0,0.02104]
[1758573937847,0.1239074,112640.0,112630.0,0.4706608]
[1758573938149,0.14531831,112640.0,112630.0,1.0150808]
[1758573940049,0.05660091,112640.0,112630.0,1.0150808]
[1758573940249,0.14531841,112640.0,112630.0,1.0150808]
[1758573940448,0.14531841,112640.0,112630.0,0.11104]
[1758573940745,0.14531841,112640.0,112630.0,0.9248451]
[1758573941347,0.53529964,112640.0,112630.0,0.815]
[1758573941650,0.53529964,112640.0,112630.0,0.9247651]
[1758573941850,0.50611841,112640.0,112630.0,0.9247651]
[1758573942556,0.57941013,112640.0,112630.0,0.9247651]
[1758573942853,0.58641013,112640.0,112630.0,0.9247651]
[1758573945546,0.49769263,112640.0,112630.0,0.9247651]
[1758573945848,0.13689263,112640.0,112630.0,0.9247651]
[1758573947452,0.22560983,112640.0,112630.0,0.9247651]
[1758573949451,0.13689263,112640.0,112630.0,0.9247651]
[1758573949848,0.13689263,112640.0,112630.0,1.31474633]
[1758573950249,0.13689263,112640.0,112630.0,1.67554633]
[1758573950649,0.13729263,112640.0,112630.0,1.67554633]
[1758573951652,0.13729263,112640.0,112630.0,1.31474633]
[1758573951852,0.13329263,112640.0,112630.0,1.31474633]
[1758573952053,0.13329263,112640.0,112630.0,1.31590633]
[1758573952256,0.02142,112640.0,112630.0,1.32969633]
[1758573952556,0.02242,112640.0,112630.0,1.32969633]
[1758573952758,0.1111372,112640.0,112630.0,1.32985633]
[1758573953657,0.1111372,112640.0,112630.0,1.33013633]
[1758573956457,0.183345,112640.0,112630.0,1.33013633]
[1758573959362,0.1833451,112640.0,112630.0,1.33013633]
[1758573959561,0.0946278,112640.0,112630.0,1.33013633]
[1758573960062,0.0946278,112640.0,112630.0,1.69093633]
[1758573962566,0.0946278,112640.0,112630.0,1.59349338]
[1758573966158,0.0946278,112640.0,112630.0,2.13603166]
[1758573966159,0.001,112640.0,112630.0,2.13603166]
[1758573966365,0.0014,112640.0,112630.0,2.13603166]
[1758573966868,0.001,112640.0,112630.0,2.13603166]
[1758573967271,0.0014,112640.0,112630.0,2.13603166]
[1758573967863,0.0014,112640.0,112630.0,2.13803166]
[1758573968972,0.0004,112640.0,112630.0,2.13903166]
[1758573975776,0.0004,112640.0,112630.0,1.32235166]
[1758573975971,0.0004,112640.0,112630.0,2.13727166]
[1758573976469,0.0004,112640.0,112630.0,2.13747166]
[1758573976670,0.0004,112640.0,112630.0,1.5523951]
[1758573976869,0.0004,112640.0,112630.0,1.84493338]
[1758573977277,0.0004,112640.0,112630.0,2.13747166]
[1758573977570,0.0004,112640.0,112630.0,1.32235166]
[1758573977974,0.0004,112640.0,112630.0,1.02981338]
[1758573978278,0.0004,112640.0,112630.0,1.84473338]
[1758573978577,0.0004,112640.0,112630.0,1.02981338]
[1758573978882,0.02353,112640.0,112630.0,1.59473338]
[1758573979076,0.02353,112640.0,112630.0,0.77981338]
[1758573979277,0.02353,112640.0,112630.0,1.23397338]
[1758573979477,0.02353,112640.0,112630.0,0.41901338]
[1758573979785,0.02353,112640.0,112630.0,1.23389338]
[1758573980168,0.40478548,112640.0,112630.0,0.1264751]
[1758573980374,0.41809548,112640.0,112630.0,1.23389338]
[1758573980882,0.02353,112640.0,112630.0,1.23389338]
[1758573981073,0.04484042,112640.0,112630.0,1.23389338]
[1758573982281,0.04484042,112640.0,112630.0,0.41901338]
[1758573982482,0.04484042,112640.0,112630.0,1.23433338]
[1758573982869,0.13355772,112640.0,112630.0,1.23433338]
[1758573983984,0.20442427,112640.0,112630.0,1.23433338]
[1758573984281,0.20642427,112640.0,112630.0,1.23233338]
[1758573984681,0.56722427,112640.0,112630.0,1.23233338]
[1758573984878,0.56822427,112640.0,112630.0,1.23133338]
[1758573985779,0.47950697,112640.0,112630.0,1.23133338]
[1758573986174,0.11870697,112640.0,112630.0,1.23133338]
[1758573990384,0.09557697,112640.0,112630.0,1.23133338]
[1758573990582,0.02471042,112640.0,112630.0,1.88467166]
[1758573990778,0.02431042,112640.0,112630.0,1.88467166]
[1758573990983,0.0034,112640.0,112630.0,1.88467166]
[1758573995483,0.0034,112640.0,112630.0,2.73720994]
[1758573995680,0.0008,112650.0,112640.0,0.1241674]
[1758573995881,0.0008,112650.0,112640.0,1.70258224]
[1758573996380,0.01796274,112660.0,112650.0,0.1017496]
[1758573996580,0.01876274,112660.0,112650.0,1.88571616]
[1758573996989,0.04007412,112660.0,112650.0,1.88571616]
[1758573997289,0.04007412,112660.0,112650.0,2.16571616]
[1758573997290,0.01876274,112660.0,112650.0,2.16571616]
[1758573997488,0.0008,112660.0,112650.0,2.16571616]
[1758573997676,0.10989489,112680.0,112670.0,0.1241438]
[1758573997881,0.13120033,112680.0,112670.0,1.23216208]
[1758573998487,0.10918033,112680.0,112670.0,1.23216208]
[1758573999884,0.10918033,112680.0,112670.0,1.52470036]
[1758574000084,0.09887489,112680.0,112670.0,1.59296208]
[1758574000485,0.10427489,112680.0,112670.0,1.59296208]
[1758574001490,0.10427489,112680.0,112670.0,1.88550036]
[1758574001793,0.03410034,112680.0,112670.0,1.88550036]
[1758574002089,0.03410034,112680.0,112670.0,1.07002036]
[1758574002284,0.03410034,112680.0,112670.0,1.88574036]
[1758574003494,0.03410034,112680.0,112670.0,1.59296208]
[1758574003792,0.0554172,112680.0,112670.0,1.23216208]
[1758574004090,0.03410034,112680.0,112670.0,1.23216208]
[1758574005689,0.05612034,112680.0,112670.0,0.41668208]
[1758574005889,0.05612034,112680.0,112670.0,0.1241438]
[1758574006091,0.05612034,112680.0,112670.0,0.41668208]
[1758574006285,0.05612034,112680.0,112670.0,1.23216208]
[1758574006992,0.05612034,112680.0,112670.0,1.59296208]
[1758574007694,0.05612034,112680.0,112670.0,0.77748208]
[1758574007995,0.05612034,112680.0,112670.0,1.59416208]
[1758574010099,0.05612034,112680.0,112670.0,0.77748208]
[1758574010289,0.05612034,112680.0,112670.0,1.59396208]
[1758574011095,1.3534329,112680.0,112670.0,0.1241438]
[1758574011284,1.37473108,112680.0,112670.0,1.23316208]
[1758574011489,1.37473108,112680.0,112670.0,0.83909]
[1758574011889,1.37473108,112680.0,112670.0,0.84013]
[1758574012384,1.37473108,112680.0,112670.0,0.02241]
[1758574012587,1.37473108,112680.0,112670.0,0.84013]
[1758574014492,0.1247138,112670.0,112660.0,0.41554508]
[1758574014692,0.79935026,112670.0,112660.0,1.21980508]
[1758574015594,0.80235026,112670.0,112660.0,1.21980508]
[1758574016094,1.06035026,112670.0,112660.0,0.40240508]
[1758574016290,1.06035026,112670.0,112660.0,1.21980508]
[1758574018097,1.06035026,112670.0,112660.0,1.13110828]
[1758574018595,1.06035026,112670.0,112660.0,0.9272717]
[1758574020097,1.06035026,112670.0,112660.0,0.83857]
[1758574021393,0.1247217,112660.0,112650.0,0.02127]
[1758574021600,1.09189644,112660.0,112650.0,0.68205]
[1758574021891,0.79935816,112660.0,112650.0,0.68205]
[1758574022099,1.09189644,112660.0,112650.0,0.68205]
[1758574022597,0.89685684,112660.0,112650.0,0.68205]
[1758574022892,0.90285684,112660.0,112650.0,0.68205]
[1758574024994,0.51281988,112660.0,112650.0,0.68205]
[1758574025193,0.51281988,112660.0,112650.0,0.02117]
[1758574025399,0.51281988,112660.0,112650.0,0.33849]
[1758574025799,0.90285684,112660.0,112650.0,0.33849]
[1758574026401,0.90285684,112660.0,112650.0,0.83841]
[1758574026796,0.90285684,112660.0,112650.0,0.02117]
[1758574029505,0.51281988,112660.0,112650.0,0.02117]
[1758574029706,0.90285684,112660.0,112650.0,0.02117]
[1758574033112,0.51281988,112660.0,112650.0,0.02117]
[1758574033306,0.90285684,112660.0,112650.0,0.02117]
[1758574034106,0.1247296,112650.0,112640.0,0.02127]
[1758574034310,0.96671027,112650.0,112640.0,0.02117]
[1758574035407,0.96771027,112650.0,112640.0,0.02117]
[1758574035607,0.1239374,112640.0,112630.0,0.02193]
[1758574035811,0.53529986,112640.0,112630.0,0.83883]
[1758574036009,0.89609986,112640.0,112630.0,0.83883]
[1758574036209,0.5060629,112640.0,112630.0,0.9411253]
[1758574037010,0.5060629,112640.0,112630.0,0.9441253]
[1758574037210,0.5060629,112640.0,112630.0,0.9451253]
[1758574037610,0.4921729,112640.0,112630.0,0.9451253]
[1758574040719,0.5060629,112640.0,112630.0,0.9451253]
[1758574041412,0.89609986,112640.0,112630.0,0.84215]
[1758574041808,0.90651726,112640.0,112630.0,0.84215]
[1758574042213,0.5164803,112640.0,112630.0,0.9444453]
[1758574042818,0.5204803,112640.0,112630.0,0.9414453]
[1758574043316,0.5224803,112640.0,112630.0,0.9404453]
[1758574044720,0.5085903,112640.0,112630.0,0.9404453]
[1758574045114,0.4094555,112640.0,112630.0,1.33048226]
[1758574045319,0.0273255,112640.0,112630.0,1.94128226]
[1758574045719,0.0064,112640.0,112630.0,1.94128226]
[1758574046513,0.006,112640.0,112630.0,1.94128226]
[1758574046714,0.07064553,112650.0,112640.0,0.1252875]
[1758574046920,0.02215337,112650.0,112640.0,0.87612446]
[1758574047120,0.04423337,112650.0,112640.0,0.87612446]
[1758574048119,0.11556905,112650.0,112640.0,0.87612446]
[1758574048311,0.11656905,112650.0,112640.0,0.87612446]
[1758574053724,0.11656905,112650.0,112640.0,1.69140446]
[1758574055527,0.11656905,112650.0,112640.0,0.87612446]
[1758574055824,0.11656905,112650.0,112640.0,1.69132446]
[1758574056826,0.0018,112650.0,112640.0,2.33136142]
[1758574057021,0.0018,112650.0,112640.0,1.94132446]
[1758574057227,0.001,112650.0,112640.0,1.12612446]
[1758574057418,0.0014,112650.0,112640.0,1.94132446]
[1758574058513,0.0014,112650.0,112640.0,2.33136142]
[1758574058720,0.0014,112650.0,112640.0,2.61136142]
[1758574059022,0.001,112650.0,112640.0,2.61136142]
[1758574059224,0.001,112650.0,112640.0,1.79616142]
[1758574059225,0.0014,112650.0,112640.0,1.79616142]
[1758574059524,0.0014,112650.0,112640.0,2.36148142]
[1758574059725,0.001,112650.0,112640.0,2.36148142]
[1758574060326,0.0014,112650.0,112640.0,1.54616142]
[1758574060822,0.0014,112650.0,112640.0,2.36148142]
[1758574061325,0.0014,112650.0,112640.0,2.61140142]
[1758574061525,0.0014,112650.0,112640.0,2.61160142]
[1758574061713,0.001,112650.0,112640.0,2.61160142]
[1758574061914,0.0004,112650.0,112640.0,2.61160142]
[1758574062127,0.0008,112670.0,112660.0,0.1252717]
[1758574062313,0.0008,112670.0,112660.0,1.69150866]
[1758574063327,0.0038,112670.0,112660.0,1.69150866]
[1758574064527,0.0108,112670.0,112660.0,1.69150866]
[1758574066724,0.01,112670.0,112660.0,1.69150866]
[1758574066932,0.0104,112670.0,112660.0,1.69150866]
[1758574068132,0.0104,112670.0,112660.0,0.87610866]
[1758574068332,0.0104,112670.0,112660.0,1.69118866]
[1758574068631,0.0104,112670.0,112660.0,1.70201072]
[1758574069126,0.01,112670.0,112660.0,1.70201072]
[1758574069430,0.0104,112670.0,112660.0,1.70201072]
[1758574071134,0.0104,112670.0,112660.0,1.31197376]
[1758574071327,0.0104,112670.0,112660.0,1.70201072]
[1758574072035,0.0104,112670.0,112660.0,0.88693072]
[1758574072334,0.0104,112670.0,112660.0,1.70197072]
[1758574075637,0.0104,112670.0,112660.0,1.70193072]
[1758574078738,0.0104,112670.0,112660.0,0.88693072]
[1758574078940,0.0104,112670.0,112660.0,1.70189072]
[1758574084041,0.0104,112670.0,112660.0,2.06269072]
[1758574084543,0.0104,112670.0,112660.0,2.25731348]
[1758574085243,0.0104,112670.0,112660.0,1.44235348]
[1758574085738,0.0104,112670.0,112660.0,1.43153142]
[1758574085937,0.0104,112670.0,112660.0,2.24645142]
[1758574086340,0.0104,112670.0,112660.0,1.43153142]
[1758574086542,0.0104,112670.0,112660.0,2.24645142]
[1758574087440,0.58711986,112670.0,112660.0,0.9401917]
[1758574087640,0.60846625,112670.0,112660.0,1.23252156]
[1758574088737,0.60846625,112670.0,112660.0,0.9401917]
[1758574088944,0.60846625,112670.0,112660.0,1.23252156]
[1758574089143,1.05795995,112670.0,112660.0,0.1120015]
[1758574089345,1.05795995,112670.0,112660.0,1.21921136]
[1758574091045,1.05795995,112670.0,112660.0,0.40433136]
[1758574091245,1.05795995,112670.0,112660.0,1.21921136]
[1758574091746,1.05795995,112670.0,112660.0,0.9269215]
[1758574092131,1.05795995,112670.0,112660.0,1.21925136]
[1758574093535,1.05795995,112670.0,112660.0,0.9269215]
[1758574096443,1.05795995,112670.0,112660.0,1.21925136]
[1758574096641,0.42693639,112670.0,112660.0,1.21925136]
[1758574096947,0.41431639,112670.0,112660.0,1.52482122]
[1758574098648,0.50301009,112670.0,112660.0,1.52482122]
[1758574098852,0.50301009,112670.0,112660.0,1.23249136]
[1758574100636,0.4816637,112670.0,112660.0,1.23249136]
[1758574100839,0.50301076,112670.0,112660.0,0.9401615]
[1758574101049,0.79534062,112670.0,112660.0,1.23249136]
[1758574101249,0.79534062,112670.0,112660.0,0.9401615]
[1758574101447,0.79534062,112670.0,112660.0,1.23249136]
[1758574103548,0.43454062,112670.0,112660.0,1.23249136]
[1758574106053,0.03174706,112670.0,112660.0,1.52482122]
[1758574106260,0.03134706,112670.0,112660.0,1.52482122]
[1758574106554,0.03174706,112670.0,112660.0,1.52482122]
[1758574106753,0.03134706,112670.0,112660.0,1.52482122]
[1758574106950,0.03174706,112670.0,112660.0,1.52482122]
[1758574108344,0.14310076,112670.0,112660.0,0.70990122]
[1758574108551,0.44872062,112670.0,112660.0,0.9268415]
[1758574108850,0.44872062,112670.0,112660.0,1.23211136]
[1758574111149,0.43543062,112670.0,112660.0,1.23211136]
[1758574111950,0.05440706,112670.0,112660.0,1.52444122]
[1758574112459,0.14310076,112670.0,112660.0,1.52444122]
[1758574113956,0.14310076,112670.0,112660.0,1.23211136]
[1758574114552,0.14310076,112670.0,112660.0,1.52444122]
[1758574117257,0.05440706,112670.0,112660.0,1.52444122]
[1758574118458,0.05440706,112670.0,112660.0,1.52432122]
[1758574118649,0.14310076,112670.0,112660.0,1.52432122]
[1758574119155,0.80952062,112670.0,112660.0,0.41727136]
[1758574119553,0.80952062,112670.0,112660.0,1.23199136]
[1758574119751,0.80952062,112670.0,112660.0,0.41727136]
[1758574119955,0.80952062,112670.0,112660.0,1.23199136]
[1758574120347,1.05952062,112670.0,112660.0,1.23199136]
[1758574122858,1.05952062,112670.0,112660.0,0.41727136]
[1758574123161,1.05952062,112670.0,112660.0,1.23195136]
[1758574123456,1.05952062,112670.0,112660.0,0.41727136]
[1758574123760,1.05952062,112670.0,112660.0,0.83798]